bitfinex/quotes_SOLUSD_20240813
["timestamp","ask_amount","ask_price","bid_price","bid_amount"]
[1723521762682,15.6316,143.76,143.71,6.958]
[1723521762882,6.9568,143.75,143.7,6.9588]
[1723521764182,6.9572,143.74,143.69,6.9593]
[1723521765389,6.9572,143.74,143.7,6.9588]
[1723521765582,15.6316,143.76,143.71,6.958]
[1723521765890,22.5877,143.76,143.71,6.958]
[1723521766087,22.5877,143.76,143.72,6.9578]
[1723521766263,15.6316,143.76,143.72,6.9578]
[1723521766469,15.6316,143.76,143.73,6.9574]
[1723521768371,15.6316,143.76,143.68,6.9598]
[1723521768372,6.9576,143.73,143.68,6.9598]
[1723521768583,15.6316,143.76,143.64,16.2796]
[1723521768584,6.9584,143.71,143.66,6.9603]
[1723521768783,6.9584,143.71,143.62,6.459]
[1723521768784,78.07196,143.75,143.65,6.9609]
[1723521768974,0.12549,143.73,143.65,6.9609]
[1723521769166,45.50196,143.73,143.65,6.9609]
[1723521769370,45.50196,143.73,143.62,32.57]
[1723521769371,0.12549,143.71,143.62,32.57]
[1723521769562,20.50196,143.71,143.6,56.02418678]
[1723521769799,15.4089,143.7,143.6,16.2199]
[1723521770009,6.961,143.66,143.56,22.6789]
[1723521770295,6.961,143.66,143.61,17.407]
[1723521771279,6.961,143.66,143.61,24.3701]
[1723521772086,32.82098,143.69,143.59,6.9638]
[1723521772087,0.12549,143.68,143.59,6.9638]
[1723521772275,65.25098,143.68,143.56,55.2489]
[1723521772595,20.0,143.68,143.62,6.9625]
[1723521772788,6.9604,143.67,143.62,6.9625]
[1723521773271,6.9599,143.68,143.62,6.9625]
[1723521773592,20.0,143.67,143.62,6.9625]
[1723521773771,20.0,143.67,143.63,6.9623]
[1723521773968,6.9599,143.68,143.63,6.9623]
[1723521774497,0.37647,143.69,143.61,6.9632]
[1723521774695,65.50196,143.69,143.61,6.9632]
[1723521774906,20.50196,143.69,143.56,55.2489]
[1723521775087,6.9623,143.64,143.58,17.4118]
[1723521775272,6.9628,143.62,143.56,6.9652]
[1723521775476,6.9628,143.62,143.57,6.965]
[1723521775681,6.9623,143.63,143.57,6.965]
[1723521776003,45.12549,143.65,143.57,6.9649]
[1723521776296,20.37647,143.64,143.57,6.9649]
[1723521776710,6.9628,143.62,143.57,6.9649]
[1723521776868,0.12549,143.62,143.55,17.4154]
[1723521777073,6.9642,143.6,143.55,17.4154]
[1723521777277,20.50196,143.62,143.53,0.8292731]
[1723521777278,6.9649,143.58,143.53,7.7963731]
[1723521777496,6.9649,143.58,143.53,0.8292731]
[1723521778009,6.9652,143.57,143.53,0.8292731]
[1723521778473,0.12549,143.58,143.53,0.8292731]
[1723521778674,20.0,143.58,143.54,6.9665]
[1723521778874,6.1846,143.59,143.55,6.9657]
[1723521779117,6.1846,143.59,143.53,25.2126731]
[1723521779285,13.149,143.59,143.54,6.9666]
[1723521779475,13.1489,143.59,143.54,6.9665]
[1723521779799,6.9633,143.61,143.53,50.8159731]
[1723521779993,16.1776,143.63,143.55,17.4144]
[1723521780197,20.0,143.62,143.55,17.4144]
[1723521780496,6.9642,143.6,143.55,17.4144]
[1723521780707,6.9644,143.59,143.53,7.7963731]
[1723521781080,6.9647,143.58,143.53,7.7963731]
[1723521781280,20.0,143.61,143.53,0.8292731]
[1723521781586,6.9648,143.58,143.53,7.7963731]
[1723521781909,0.12549,143.59,143.53,0.8292731]
[1723521781910,6.9663,143.55,143.53,0.8292731]
[1723521782280,29.5383,143.56,143.53,0.8292731]
[1723521782482,23.0186,143.6,143.53,0.8292731]
[1723521782707,23.6245,143.63,143.55,32.57]
[1723521782919,16.6621,143.63,143.55,32.57]
[1723521783212,16.6621,143.63,143.58,6.9646]
[1723521783407,23.6246,143.63,143.58,6.9646]
[1723521783612,23.6246,143.63,143.57,24.3772]
[1723521783807,16.6621,143.63,143.58,6.9646]
[1723521784189,13.3183,143.64,143.59,6.964]
[1723521784398,6.3565,143.64,143.59,6.964]
[1723521785394,6.9614,143.65,143.59,6.964]
[1723521785788,15.95048,143.66,143.59,6.964]
[1723521786023,6.9619,143.64,143.59,6.964]
[1723521786312,0.12549,143.65,143.57,17.4121]
[1723521786518,65.37647,143.65,143.57,17.4121]
[1723521786722,20.25098,143.65,143.57,17.4121]
[1723521786890,6.9622,143.64,143.59,6.9642]
[1723521788103,6.9623,143.63,143.58,6.9646]
[1723521788341,20.12549,143.65,143.57,24.3773]
[1723521788514,6.9623,143.63,143.58,6.9646]
[1723521789215,6.9619,143.64,143.59,6.9642]
[1723521789916,20.12549,143.65,143.57,17.4121]
[1723521790086,6.9634,143.61,143.57,17.4121]
[1723521790286,6.9629,143.62,143.57,24.3773]
[1723521790500,7.08749,143.64,143.57,17.4121]
[1723521790688,7.08749,143.64,143.54,15.7916]
[1723521790689,0.12549,143.62,143.54,17.4166]
[1723521790904,6.9643,143.59,143.54,24.3832]
[1723521791794,6.9637,143.6,143.55,6.9661]
[1723521792515,7.33967,143.62,143.56,6.9654]
[1723521792703,26.9633,143.61,143.57,6.9652]
[1723521793088,26.9633,143.61,143.56,6.9656]
[1723521793489,20.0,143.61,143.54,24.3828]
[1723521793825,0.12549,143.61,143.54,24.3828]
[1723521794116,0.25098,143.61,143.54,24.3828]
[1723521794315,6.9643,143.59,143.55,6.9662]
[1723521794510,0.25098,143.61,143.55,6.9662]
[1723521796192,6.9638,143.6,143.55,6.9662]
[1723521797788,6.9642,143.59,143.55,6.9662]
[1723521798295,6.9642,143.59,143.54,24.3832]
[1723521798825,6.9636,143.61,143.56,6.9655]
[1723521799000,6.9638,143.6,143.56,6.9655]
[1723521799199,6.9638,143.6,143.55,6.9661]
[1723521799402,6.9649,143.58,143.54,17.4166]
[1723521800428,6.9653,143.57,143.53,0.8292731]
[1723521801940,6.9657,143.56,143.53,0.8292731]
[1723521802304,6.9652,143.57,143.53,7.7962731]
[1723521802509,6.9652,143.57,143.53,0.8292731]
[1723521802707,6.9658,143.56,143.53,0.8292731]
[1723521802926,0.12549,143.58,143.53,0.8292731]
[1723521803125,45.50196,143.58,143.53,0.8292731]
[1723521803341,6.9666,143.54,143.53,0.8292731]
[1723521805331,6.9673,143.53,143.48,17.4234]
[1723521805515,0.12549,143.56,143.48,17.4234]
[1723521805712,65.50196,143.56,143.49,6.969]
[1723521806135,65.50196,143.56,143.48,24.3929]
[1723521806136,6.9672,143.53,143.48,24.3929]
[1723521806504,6.9672,143.53,143.49,6.969]
[1723521806724,6.9678,143.52,143.47,6.9696]
[1723521806929,6.9677,143.52,143.47,6.9696]
[1723521807402,6.9682,143.51,143.46,23.4256]
[1723521807599,6.9686,143.5,143.46,16.4551]
[1723521807998,6.9682,143.51,143.46,23.4256]
[1723521808202,65.50196,143.56,143.47,17.4244]
[1723521808602,6.9665,143.55,143.5,6.9685]
[1723521808805,20.0,143.54,143.5,6.9685]
[1723521809103,26.9668,143.54,143.5,6.9686]
[1723521809299,2.6253304,143.58,143.49,24.3903]
[1723521809506,26.12596469,143.59,143.51,6.9681]
[1723521809507,6.9666,143.55,143.51,6.9681]
[1723521809933,6.9671,143.54,143.49,17.4217]
[1723521810135,6.9671,143.53,143.49,24.3907]
[1723521810305,6.9671,143.53,143.49,17.4217]
[1723521810507,6.9676,143.52,143.46,23.4253]
[1723521810710,6.9676,143.52,143.46,40.8513]
[1723521810911,6.9682,143.51,143.46,40.8513]
[1723521811236,6.9677,143.52,143.47,6.9699]
[1723521812226,0.12549,143.54,143.46,24.3965]
[1723521812428,45.50196,143.54,143.46,24.3965]
[1723521812728,6.9695,143.49,143.44,6.9711]
[1723521814029,6.9686,143.5,143.44,17.4277]
[1723521814205,6.9686,143.5,143.45,6.9709]
[1723521814405,0.12549,143.52,143.44,17.4277]
[1723521814604,0.50196,143.52,143.44,17.4277]
[1723521814809,6.9683,143.51,143.44,17.4277]
[1723521815010,6.9676,143.52,143.47,6.9699]
[1723521815234,26.9672,143.53,143.48,6.9694]
[1723521815836,6.9677,143.52,143.47,6.97]
[1723521816212,20.0,143.53,143.46,17.4257]
[1723521816614,6.9691,143.49,143.45,39.641]
[1723521816833,6.9686,143.5,143.45,39.641]
[1723521817032,20.0,143.53,143.45,32.67]
[1723521817231,0.12549,143.52,143.45,6.971]
[1723521817511,0.50196,143.52,143.45,6.971]
[1723521817721,6.969,143.5,143.45,6.971]
[1723521818050,6.9692,143.49,143.44,6.9714]
[1723521818423,6.9692,143.49,143.45,6.971]
[1723521818823,6.9692,143.49,143.44,6.9714]
[1723521819023,45.50196,143.52,143.45,17.4268]
[1723521819224,20.0,143.51,143.45,17.4268]
[1723521819420,26.9685,143.51,143.46,6.9705]
[1723521819625,6.969,143.5,143.45,24.3978]
[1723521820134,6.9693,143.49,143.45,17.4268]
[1723521820741,20.0,143.51,143.47,6.9698]
[1723521820943,20.0,143.51,143.48,6.9696]
[1723521821144,6.9681,143.52,143.47,6.9699]
[1723521821511,22.6636,143.55,143.45,32.67]
[1723521821717,16.3421,143.55,143.5,6.9683]
[1723521821937,6.968,143.52,143.47,32.67]
[1723521822120,6.9682,143.51,143.47,6.9699]
[1723521822525,16.3421,143.55,143.48,6.9695]
[1723521822728,6.9673,143.53,143.49,6.969]
[1723521822926,6.9673,143.53,143.48,6.9694]
[1723521823615,6.9668,143.54,143.49,6.969]
[1723521823822,40.68119255,143.58,143.49,32.67]
[1723521823823,5.28612703,143.58,143.49,32.67]
[1723521824020,32.20297578,143.59,143.52,6.9673]
[1723521824021,26.9656,143.57,143.52,6.9673]
[1723521824228,17.32387578,143.59,143.52,16.6143]
[1723521824429,6.9651,143.58,143.53,24.3842]
[1723521824824,20.11829929,143.62,143.51,32.67]
[1723521824825,20.0,143.61,143.51,32.67]
[1723521825033,20.0,143.61,143.46,6.2839]
[1723521825034,6.9671,143.54,143.49,6.9687]
[1723521825223,6.9677,143.52,143.48,16.6143]
[1723521825427,42.6728,143.57,143.46,6.2839]
[1723521825618,50.0855,143.56,143.44,32.9852]
[1723521825826,85.25098,143.55,143.44,32.9852]
[1723521826042,6.969,143.5,143.45,6.9706]
[1723521826229,6.9693,143.49,143.44,32.9852]
[1723521826553,6.9699,143.48,143.44,15.5567]
[1723521826849,6.9691,143.49,143.44,22.5282]
[1723521827551,6.9686,143.51,143.46,6.9705]
[1723521827848,6.9686,143.5,143.46,6.9705]
[1723521828357,6.9702,143.47,143.42,6.2805]
[1723521828551,6.9702,143.47,143.42,6.9724]
[1723521829038,6.9697,143.48,143.41,17.4321]
[1723521829242,6.9697,143.48,143.41,24.405]
[1723521829243,0.12549,143.48,143.41,24.405]
[1723521829458,0.37647,143.48,143.41,24.405]
[1723521829749,7.22088,143.48,143.43,6.972]
[1723521829916,7.09539,143.48,143.43,6.972]
[1723521830116,6.9699,143.48,143.43,6.972]
[1723521830318,6.9692,143.49,143.44,6.9715]
[1723521831145,15.377,143.5,143.45,6.971]
[1723521831146,6.9686,143.5,143.45,6.971]
[1723521831323,6.9686,143.5,143.46,6.9705]
[1723521831952,6.9686,143.5,143.45,6.971]
[1723521833223,0.12549,143.52,143.45,6.971]
[1723521833546,65.50196,143.52,143.45,6.971]
[1723521833851,6.9696,143.48,143.44,39.6414]
[1723521834053,6.9701,143.47,143.43,17.429]
[1723521834235,6.9707,143.46,143.41,6.9729]
[1723521834427,6.9707,143.46,143.42,6.9725]
[1723521834624,6.9702,143.47,143.42,6.9725]
[1723521835240,6.9706,143.46,143.41,6.9727]
[1723521836447,6.9706,143.46,143.42,6.9724]
[1723521837573,6.9706,143.46,143.41,6.9728]
[1723521837952,0.12549,143.46,143.39,0.8292731]
[1723521838185,20.37647,143.46,143.39,0.8292731]
[1723521838370,0.12549,143.45,143.39,0.8292731]
[1723521838668,0.12549,143.44,143.39,0.8292731]
[1723521838862,20.37647,143.44,143.39,0.8292731]
[1723521839065,6.9726,143.42,143.39,0.8292731]
[1723521839453,20.0,143.44,143.39,0.8292731]
[1723521839649,20.12549,143.46,143.39,18.2633731]
[1723521839849,20.12549,143.46,143.41,6.973]
[1723521840052,26.9707,143.46,143.42,6.9723]
[1723521840761,26.9707,143.46,143.41,6.973]
[1723521841945,26.9707,143.46,143.42,6.9724]
[1723521842257,26.9707,143.46,143.41,6.9729]
[1723521843075,20.0,143.46,143.42,6.9723]
[1723521843460,26.9707,143.46,143.39,50.9333731]
[1723521843803,6.9716,143.44,143.39,18.2633731]
[1723521844079,0.12549,143.46,143.39,0.8292731]
[1723521844242,6.9724,143.43,143.39,0.8292731]
[1723521844448,6.9716,143.44,143.4,6.9734]
[1723521844646,6.9716,143.44,143.39,0.8292731]
[1723521844844,6.9721,143.43,143.39,0.8292731]
[1723521845053,20.0,143.46,143.39,0.8292731]
[1723521845271,6.9711,143.45,143.4,6.973]
[1723521845469,6.9725,143.43,143.39,0.8292731]
[1723521845676,0.12549,143.45,143.39,0.8292731]
[1723521845974,6.973,143.41,143.39,0.8292731]
[1723521846162,6.9735,143.4,143.39,0.8292731]
[1723521847349,7.09899,143.4,143.39,0.8292731]
[1723521847650,7.22448,143.4,143.39,0.8292731]
[1723521847851,7.47546,143.4,143.39,0.8292731]
[1723521848073,74.43126,143.4,143.39,0.8292731]
[1723521848269,0.12549,143.39,143.32,17.4429]
[1723521848481,65.50196,143.39,143.27,16.1174]
[1723521848645,6.9769,143.33,143.29,17.4467]
[1723521849073,0.12549,143.37,143.29,17.4467]
[1723521849342,2.7074425,143.42,143.34,32.67]
[1723521849545,6.394,143.43,143.36,17.4378]
[1723521849546,9.14133711,143.43,143.36,17.4378]
[1723521849768,6.394,143.43,143.37,6.9748]
[1723521849970,6.9737,143.4,143.36,17.4378]
[1723521850153,6.9731,143.41,143.36,24.4132]
[1723521850587,6.9735,143.4,143.35,6.9758]
[1723521850875,6.9729,143.42,143.36,6.9754]
[1723521851077,13.3661,143.43,143.35,17.439]
[1723521851367,13.3661,143.43,143.34,32.67]
[1723521851368,6.972,143.43,143.36,32.67]
[1723521851572,6.9739,143.4,143.34,6.9763]
[1723521851747,6.9739,143.4,143.35,6.9755]
[1723521852072,6.972,143.43,143.38,6.9744]
[1723521852258,15.5618,143.44,143.33,22.2181]
[1723521852462,40.0,143.43,143.3,22.2181]
[1723521852776,0.12549,143.41,143.3,54.8881]
[1723521852959,6.9753,143.37,143.31,6.9778]
[1723521853166,6.9745,143.38,143.33,6.9768]
[1723521853574,6.9748,143.38,143.32,32.67]
[1723521853875,6.36436554,143.41,143.3,54.8881]
[1723521854049,6.9759,143.35,143.3,29.196]
[1723521854250,6.9764,143.34,143.3,17.4457]
[1723521854573,6.9758,143.36,143.3,24.4236]
[1723521854946,6.9761,143.35,143.3,24.4236]
[1723521855151,6.9765,143.34,143.29,32.67]
[1723521855374,0.12549,143.37,143.26,6.5081]
[1723521855375,6.91218,143.35,143.26,6.5081]
[1723521855579,6.9778,143.31,143.26,6.9799]
[1723521855928,6.9793,143.28,143.23,22.346]
[1723521856180,6.9764,143.34,143.28,6.9788]
[1723521856378,6.6612,143.35,143.27,17.4485]
[1723521856379,20.0,143.33,143.27,17.4485]
[1723521856547,13.6371,143.35,143.27,17.4485]
[1723521856750,26.9766,143.34,143.29,6.9787]
[1723521857152,6.9759,143.35,143.3,6.9781]
[1723521858077,20.12549,143.34,143.29,6.9784]
[1723521858283,20.0,143.34,143.29,6.9784]
[1723521858584,6.9769,143.33,143.28,24.4266]
[1723521859370,6.9774,143.32,143.28,17.4473]
[1723521859688,20.0,143.34,143.25,32.67]
[1723521859891,0.12549,143.35,143.25,32.67]
[1723521859892,0.37647,143.35,143.25,32.67]
[1723521860080,0.12549,143.34,143.25,32.67]
[1723521860388,0.12549,143.34,143.25,39.6507]
[1723521860389,6.9784,143.3,143.25,39.6507]
[1723521861100,6.9779,143.31,143.26,6.9803]
[1723521861262,0.37647,143.35,143.25,32.67]
[1723521861462,20.25098,143.35,143.29,6.9788]
[1723521861689,20.0,143.34,143.28,6.9792]
[1723521861898,0.12549,143.35,143.27,57.0991]
[1723521862190,6.9774,143.32,143.27,57.0991]
[1723521862570,6.9769,143.33,143.28,6.9793]
[1723521862763,6.9774,143.32,143.27,57.099]
[1723521863192,6.9769,143.33,143.28,6.9792]
[1723521863488,6.9774,143.32,143.27,57.099]
[1723521863996,0.12549,143.33,143.23,32.8186]
[1723521864194,0.12549,143.33,143.22,6.5081]
[1723521864195,6.9803,143.26,143.22,6.5081]
[1723521864490,17.57059,143.31,143.2,34.097]
[1723521864690,0.12549,143.29,143.2,34.097]
[1723521864860,26.9786,143.3,143.25,6.9807]
[1723521865064,22.6527,143.36,143.25,32.67]
[1723521865265,6.9782,143.31,143.26,6.9802]
[1723521865689,37.56529,143.35,143.25,32.67]
[1723521865993,6.9779,143.31,143.25,39.6503]
[1723521866195,6.9766,143.34,143.29,6.9787]
[1723521866591,6.9766,143.34,143.29,32.67]
[1723521866767,16.1642,143.36,143.26,86.18309]
[1723521866968,33.6032,143.36,143.27,0.12549]
[1723521867191,33.6032,143.36,143.26,111.87329]
[1723521867388,16.1642,143.36,143.28,32.67]
[1723521867597,17.4351,143.39,143.3,32.67]
[1723521868098,6.9774,143.32,143.27,39.6498]
[1723521868275,6.9774,143.32,143.27,6.9798]
[1723521868471,6.9774,143.32,143.27,6.9796]
[1723521868669,6.978,143.31,143.26,41.0585]
[1723521869166,17.56639,143.35,143.26,16.6279]
[1723521869368,65.37647,143.34,143.26,16.6279]
[1723521869566,20.0,143.34,143.26,16.6279]
[1723521869769,6.9769,143.33,143.28,6.9789]
[1723521869970,20.0,143.34,143.27,32.67]
[1723521870211,6.9759,143.35,143.29,32.67]
[1723521870391,6.9764,143.34,143.29,32.67]
[1723521870577,20.0,143.37,143.27,77.67]
[1723521870778,20.0,143.37,143.27,32.67]
[1723521871099,20.0,143.37,143.3,6.9783]
[1723521871300,6.9769,143.33,143.29,32.67]
[1723521871478,20.0,143.37,143.29,32.67]
[1723521871785,6.9763,143.35,143.3,6.9783]
[1723521871994,16.5176,143.33,143.24,0.8292731]
[1723521872302,20.0,143.32,143.24,0.8292731]
[1723521873881,20.0,143.32,143.24,7.8104731]
[1723521874824,6.9779,143.31,143.26,6.9802]
[1723521875017,6.9784,143.3,143.25,6.9807]
[1723521875792,20.0,143.32,143.24,0.8292731]
[1723521875793,37.4435,143.32,143.24,0.8292731]
[1723521876199,6.9802,143.27,143.24,0.8292731]
[1723521876509,6.9793,143.28,143.24,0.8292731]
[1723521876684,6.9799,143.27,143.24,0.8292731]
[1723521876883,6.9793,143.28,143.24,0.8292731]
[1723521877603,6.9799,143.27,143.24,0.8292731]
[1723521878192,37.4435,143.32,143.24,0.8292731]
[1723521878509,6.9788,143.29,143.24,7.8100731]
[1723521878811,6.9779,143.31,143.26,6.9802]
[1723521879107,15.3621,143.36,143.27,50.1187]
[1723521879299,15.3621,143.36,143.28,45.37647]
[1723521879607,6.9763,143.35,143.3,6.9782]
[1723521879818,6.974,143.39,143.34,6.9759]
[1723521880000,6.9735,143.4,143.35,8.37047172]
[1723521880318,6.9743,143.39,143.34,0.12549]
[1723521880487,65.4611,143.44,143.33,50.1112]
[1723521880688,65.4611,143.44,143.33,17.4412]
[1723521881097,6.9751,143.37,143.33,17.4412]
[1723521881305,50.1021,143.42,143.32,22.241]
[1723521881615,17.4347,143.4,143.32,22.241]
[1723521881915,20.12549,143.39,143.32,22.241]
[1723521882130,20.0,143.39,143.32,22.241]
[1723521882295,45.12549,143.38,143.28,70.1601]
[1723521882491,6.9773,143.32,143.28,22.241]
[1723521882800,17.4376,143.37,143.28,29.2201]
[1723521882998,6.9773,143.33,143.28,29.2201]
[1723521883204,6.9764,143.34,143.29,6.9787]
[1723521883712,17.4376,143.37,143.28,22.241]
[1723521883921,20.0,143.36,143.28,22.241]
[1723521884790,20.0,143.36,143.3,17.4456]
[1723521884990,20.0,143.39,143.32,6.9773]
[1723521885225,20.0,143.39,143.3,17.4456]
[1723521885226,20.0,143.39,143.33,17.442]
[1723521885386,20.0,143.41,143.33,17.442]
[1723521885594,6.9747,143.38,143.33,17.442]
[1723521886019,40.94,143.42,143.31,51.9777]
[1723521886219,6.9754,143.36,143.31,6.9774]
[1723521886520,6.974,143.39,143.34,6.9764]
[1723521886730,6.9736,143.4,143.35,6.9756]
[1723521887096,6.974,143.39,143.34,6.9763]
[1723521887815,6.9735,143.4,143.35,6.9759]
[1723521888217,6.0948,143.45,143.36,1.39487201]
[1723521888448,15.9459,143.47,143.37,0.25098]
[1723521888592,15.9459,143.47,143.37,45.25098]
[1723521888914,75.797,143.45,143.32,17.4428]
[1723521889217,6.9754,143.36,143.32,24.4201]
[1723521889419,6.9763,143.35,143.3,6.9783]
[1723521889823,6.9764,143.34,143.29,24.4258]
[1723521890032,16.07139,143.39,143.29,17.4471]
[1723521890322,20.0,143.38,143.29,17.4471]
[1723521891215,20.0,143.39,143.29,17.4471]
[1723521891536,33.3761,143.43,143.33,16.1885]
[1723521892329,6.974,143.39,143.34,45.12549]
[1723521892501,6.974,143.39,143.34,58.84478]
[1723521892705,6.9745,143.38,143.34,51.86848]
[1723521893233,33.3761,143.43,143.34,6.6175]
[1723521893463,6.9749,143.37,143.34,6.6175]
[1723521894007,33.3761,143.43,143.34,6.6175]
[1723521894331,20.0,143.42,143.34,6.6175]
[1723521894644,17.4266,143.46,143.38,6.9742]
[1723521894955,15.9459,143.47,143.42,6.9724]
[1723521894956,6.9705,143.47,143.42,6.9724]
[1723521895109,6.0657,143.5,143.4,23.1619]
[1723521895110,6.971,143.45,143.4,23.1619]
[1723521895305,23.4882,143.5,143.41,0.12549]
[1723521895517,6.9706,143.46,143.41,7.09839]
[1723521895959,6.97,143.48,143.42,6.9723]
[1723521896239,6.97,143.48,143.43,1.39414213]
[1723521896529,15.9459,143.51,143.42,17.4311]
[1723521896530,6.9701,143.47,143.42,17.4311]
[1723521896907,6.9707,143.46,143.42,17.4311]
[1723521898950,15.9459,143.51,143.42,17.4311]
[1723521899259,17.418,143.53,143.42,17.4311]
[1723521899260,20.0,143.5,143.42,17.4311]
[1723521899562,20.0,143.5,143.43,0.12549]
[1723521899744,6.97,143.48,143.43,7.09739]
[1723521900473,20.0,143.52,143.44,1.51953756]
[1723521900631,6.9686,143.5,143.45,6.9707]
[1723521900825,6.9675,143.53,143.48,6.9694]
[1723521901050,17.4145,143.56,143.47,16.31399]
[1723521901234,17.4177,143.54,143.47,16.1885]
[1723521901561,6.9696,143.48,143.47,16.1885]
[1723521902061,17.4177,143.54,143.47,16.1885]
[1723521902062,6.9692,143.49,143.47,16.1885]
[1723521902755,28.75512903,143.57,143.47,23.1581]
[1723521902756,6.9675,143.53,143.47,23.1581]
[1723521902955,6.9675,143.53,143.48,6.9695]
[1723521903262,6.9675,143.53,143.49,13.80148]
[1723521903493,6.9668,143.54,143.49,13.80148]
[1723521904883,36.04166959,143.58,143.49,13.80148]
[1723521904884,6.9662,143.55,143.5,6.9685]
[1723521905261,18.62024253,143.61,143.52,0.12549]
[1723521905461,23.6268,143.65,143.53,16.1297]
[1723521905646,6.9646,143.59,143.55,0.12549]
[1723521905853,6.9652,143.57,143.53,16.1297]
[1723521906160,6.9644,143.59,143.54,0.25098]
[1723521906471,6.9633,143.61,143.56,7.09099]
[1723521906776,6.2223,143.65,143.6,6.9637]
[1723521906777,6.9614,143.65,143.6,6.9637]
[1723521906960,63.6967,143.7,143.57,51.83248]
[1723521906961,6.9637,143.61,143.57,51.83248]
[1723521907162,6.9638,143.6,143.57,6.5815]
[1723521907376,6.9633,143.61,143.57,6.5815]
[1723521907556,6.9628,143.62,143.57,13.5466]
[1723521908374,40.94,143.66,143.57,6.5815]
[1723521908576,6.9633,143.61,143.57,6.5815]
[1723521908958,6.9628,143.62,143.57,13.5467]
[1723521909959,20.0,143.65,143.57,23.9938]
[1723521910158,6.9618,143.64,143.59,6.9638]
[1723521910372,6.9613,143.66,143.6,1.64345144]
[1723521910580,6.9613,143.66,143.61,8.35543717]
[1723521910996,6.9614,143.65,143.6,6.9637]
[1723521911186,6.9614,143.65,143.57,6.5815]
[1723521911187,6.9642,143.6,143.57,6.5815]
[1723521911483,6.9633,143.61,143.57,6.5815]
[1723521911979,6.9633,143.61,143.57,13.5467]
[1723521912179,6.9629,143.62,143.57,13.5467]
[1723521912415,6.9629,143.62,143.57,6.5815]
[1723521912881,6.9633,143.61,143.57,13.5467]
[1723521913208,6.962,143.64,143.6,6.9637]
[1723521913514,40.7802283,143.71,143.57,23.9937]
[1723521913515,6.9609,143.66,143.61,6.9632]
[1723521913693,58.1768283,143.71,143.59,0.25098]
[1723521913694,17.3993,143.69,143.59,0.25098]
[1723521914010,17.3993,143.69,143.59,0.12549]
[1723521914219,6.9623,143.63,143.59,0.12549]
[1723521914407,6.9617,143.65,143.59,7.21478]
[1723521914581,6.9617,143.65,143.59,0.25098]
[1723521914801,6.9607,143.67,143.62,6.9625]
[1723521914990,20.0,143.66,143.61,15.4761]
[1723521915296,6.9618,143.64,143.61,15.4761]
[1723521915786,6.9614,143.65,143.61,22.4393]
[1723521916031,6.9618,143.64,143.61,15.4761]
[1723521916417,6.9622,143.64,143.59,6.9642]
[1723521916781,6.9614,143.65,143.6,6.9637]
[1723521917809,20.03601546,143.73,143.61,45.25098]
[1723521918103,6.9599,143.68,143.62,0.12549]
[1723521918301,6.9608,143.66,143.61,52.33937]
[1723521918695,6.9603,143.68,143.62,6.9627]
[1723521918895,6.9603,143.68,143.61,62.78397]
[1723521919295,6.9603,143.68,143.63,6.9619]
[1723521919490,6.9594,143.69,143.64,6.9617]
[1723521922292,6.9599,143.68,143.64,6.9617]
[1723521922512,17.397,143.71,143.6,17.4092]
[1723521922721,6.9613,143.66,143.61,6.9631]
[1723521924511,60.94,143.7,143.57,40.2201]